[Event "Superbet Blitz Poland 2023"]
[Site "Warsaw"]
[Date "2023.05.24"]
[Round "2"]
[White "So, Wesley"]
[Black "Carlsen, Magnus"]
[Result "1-0"]
[ECO "B01"]
[WhiteElo "2760"]
[BlackElo "2853"]
[Annotator "TA"]
[PlyCount "117"]
[EventDate "2023.05.24"]
[EventType "tourn"]
[EventCountry "POL"]
[SourceTitle "playchess.com"]
[Source "ChessBase"]
[SourceQuality "1"]
[TimeControl "300+2"]

{[%evp 10,117,33,23,23,35,30,10,13,10,10,18,12,8,12,11,12,6,20,20,31,26,30,0,7,0,0,0,0,2,8,0,0,0,0,0,10,0,66,67,77,82,82,76,102,57,151,112,135,128,138,89,84,93,120,35,175,174,156,166,154,149,173,168,198,172,185,190,307,303,469,364,461,424,1380,1368,1352,1268,1193,1193,1411,1215,12681,11513,29961,29962,29967,29968,29952,8549,29972,6482,29976,29977,29974,29975,29978,29979,29983,29967,29968,29969,29967,29967,12794,5139,29980,29981,29981,29982]} 1. e4 {[%emt 0:00:03]} d5 {[%emt 0:00:01]} 2. exd5 {[%emt 0:00:01]} Qxd5 {[%emt 0:00:02]} 3. Nc3 {[%emt 0:00:01]} Qa5 {[%emt 0:00:01]} 4. d4 {[%emt 0:00:01]} Nf6 {[%emt 0:00:03]} 5. Nf3 {[%emt 0:00:02]} Bf5 {[%emt 0:00:05]} 6. Bd2 {[%emt 0:00:16]} e6 {[%emt 0:00:03] B01: Scandinavian Defence.} 7. Bc4 {[%emt 0:00:02][%cal Oc3d5]} Bb4 {[%emt 0:00:02] is more profitable than 7...c6 at the moment.} 8. a3 {[%emt 0:00:06]} Bxc3 {[%emt 0:00:02] The position is equal.} 9. Bxc3 {[%emt 0:00:02]} Qb6 {[%emt 0:00:01]} 10. d5 {[%emt 0:00:02]} Nbd7 {[%emt 0:01:50]} 11. dxe6 {[%emt 0:00:04]} Bxe6 {[%emt 0:00:04]} 12. Bxe6 {[%emt 0:00:28]} Qxe6+ {[%emt 0:00:02]} 13. Qe2 {[%emt 0:00:01]} Qxe2+ {[%emt 0:00:36]} 14. Kxe2 {[%emt 0:00:01]} O-O-O {[%emt 0:00:04]} 15. Rhe1 {[%emt 0:00:18]} Nd5 {[%emt 0:00:43] [#]} 16. Bd4 $146 {[%emt 0:01:03]} ({Predecessor:} 16. Bd2 Nc5 17. Kf1 Rhe8 18. Rxe8 Rxe8 19. Re1 Rxe1+ 20. Kxe1 Kd7 21. Ke2 f6 22. c4 Nb6 23. Be3 Ne6 {½-½ Thavandiran,S (2410)-Naroditsky,D (2616) Bay Area op Burlingame 2019 (2)}) 16... f6 {[%emt 0:00:20]} 17. b3 {[%emt 0:00:35]} ({Don't play} 17. Bxa7 b6 18. Kf1 Kb7 $17) 17... c5 {[%emt 0:00:23]} 18. Bb2 {[%emt 0:00:02]} Nb8 {[%emt 0:00:03]} 19. Kf1 {[%emt 0:00:10]} Nc6 {[%emt 0:00:02]} 20. Rad1 {[%emt 0:00:04]} Nde7 {[%emt 0:00:14]} 21. g4 {[%emt 0:00:16]} Rxd1 {[%emt 0:00:11]} 22. Rxd1 {[%emt 0:00:01]} Rd8 {[%emt 0:00:19]} 23. Re1 {[%emt 0:00:22]} Kd7 {[%emt 0:00:15]} (23... b6 $11) 24. g5 $14 {[%emt 0:00:15]} Rf8 {[%emt 0:00:04]} 25. gxf6 {[%emt 0:00:02]} gxf6 {[%emt 0:00:01]} 26. Nd2 $1 {[%emt 0:00:01] White is more active.} f5 {[%emt 0:00:16] Inhibits Ne4.} 27. Nf3 {[%emt 0:00:10]} b6 {[%emt 0:00:05]} (27... Rg8 $14) 28. Ng5 {[%emt 0:00:07]} h6 {[%emt 0:00:01]} 29. Rd1+ {[%emt 0:00:12]} Kc8 {[%emt 0:00:01]} 30. Bg7 {[%emt 0:00:07] Repels hxg5} (30. Ne6 $142 Rg8 31. Rd6) 30... Rg8 $16 {[%emt 0:00:01]} 31. Bxh6 {[%emt 0:00:01]} Nd4 {[%emt 0:00:03] Inhibits Nf3.} 32. h4 {[%emt 0:00:09]} (32. c3 $16 Nb5 33. Rd3) 32... Rh8 {[%emt 0:00:04] A mistake that costs the game.} (32... Nxc2 $14 33. Nf7 Nc6) 33. Bg7 $18 {[%emt 0:00:10][%csl LRd4,LRh8]} Rxh4 {[%emt 0:00:01] White must now prevent ...Rh1+.} 34. Bxd4 {[%emt 0:00:01]} cxd4 {[%emt 0:00:01][%mdl 4096] Endgame [#] KRN-KRN} 35. Nf3 $1 {[%emt 0:00:09][%csl LRd4,LRh4]} Rh1+ {[%emt 0:00:02]} 36. Ke2 {[%emt 0:00:00]} Rxd1 {[%emt 0:00:05]} 37. Kxd1 {[%emt 0:00:01] KN-KN} d3 {[%emt 0:00:01] [#]} 38. c4 {[%emt 0:00:07]} ({Don't take} 38. cxd3 $6 Kd7 $16) 38... Nc6 {[%emt 0:00:02]} (38... Ng6 $142 39. Kd2 Nf4) 39. Kd2 {[%emt 0:00:00]} Na5 {[%emt 0:00:01]} (39... Kc7 $142 40. Kxd3 a5) 40. Nd4 {[%emt 0:00:01]} (40. Kxd3 Nxb3 41. Nh4 f4 $16) 40... Kd7 {[%emt 0:00:02]} 41. Kxd3 {[%emt 0:00:02] Hoping for b4.} ({Less strong is} 41. Nxf5 Nxb3+ 42. Kxd3 Nc5+ 43. Ke3 Na4 $16) 41... Kd6 {[%emt 0:00:02]} (41... Nb7 $142 42. Nxf5 Nc5+ 43. Kc2 Ne4) 42. b4 {[%emt 0:00:05]} Nb7 {[%emt 0:00:01]} 43. Nxf5+ {[%emt 0:00:01]} Ke5 {[%emt 0:00:00]} 44. Nd4 {[%emt 0:00:01]} a5 {[%emt 0:00:01]} 45. Ne2 {[%emt 0:00:10]} axb4 {[%emt 0:00:01]} 46. axb4 {[%emt 0:00:01]} Nd8 {[%emt 0:00:02]} 47. f4+ {[%emt 0:00:02]} Kf5 {[%emt 0:00:00]} 48. Ke3 {[%emt 0:00:02]} Ke6 {[%emt 0:00:04]} 49. Ke4 {[%emt 0:00:01]} (49. Nd4+ $142 Kd7 50. Ke4 Nf7 51. Nf5 Kc6 52. Ne3 Nd8 53. f5 Nf7 54. Kd4) 49... Nf7 {[%emt 0:00:02]} 50. Nd4+ {[%emt 0:00:07]} (50. c5 $142 bxc5 51. bxc5 Nh8 52. Nd4+ Kd7 53. Kd5 Ng6 54. c6+ Kc8 55. f5) 50... Kd6 {[%emt 0:00:00]} 51. Kf5 {[%emt 0:00:03]} Nh6+ {[%emt 0:00:02]} 52. Kg5 {[%emt 0:00:06]} Ng8 {[%emt 0:00:01]} 53. Nf5+ {[%emt 0:00:09]} Ke6 {[%emt 0:00:02]} 54. Ne3 {[%emt 0:00:01]} Nf6 {[%emt 0:00:01]} 55. f5+ {[%emt 0:00:02]} Kf7 {[%emt 0:00:02]} 56. Kf4 {[%emt 0:00:07]} Nd7 {[%emt 0:00:01]} 57. Ng4 {[%emt 0:00:01]} (57. Nd5 $142 Ke8 58. b5) 57... Nb8 {[%emt 0:00:02]} 58. b5 {[%emt 0:00:01]} Ke7 {[%emt 0:00:02]} 59. Ne5 {[%emt 0:00:01] Weighted Error Value: White=0.11 (very precise) /Black=0.61} 1-0

[Event "Superbet Blitz Poland 2023"]
[Site "Warsaw"]
[Date "2023.05.24"]
[Round "2"]
[White "Vachier-Lagrave, Maxime"]
[Black "Rapport, Richard"]
[Result "1-0"]
[ECO "C15"]
[WhiteElo "2742"]
[BlackElo "2745"]
[Annotator "TA"]
[PlyCount "103"]
[EventDate "2023.05.24"]
[EventType "tourn"]
[EventCountry "POL"]
[SourceTitle "playchess.com"]
[Source "ChessBase"]
[SourceQuality "1"]
[TimeControl "300+2"]

{[%evp 14,103,4,1,14,6,31,11,53,48,48,47,58,54,43,0,32,28,48,39,37,8,50,27,24,-33,-21,-24,-2,-12,0,0,0,0,53,47,116,103,112,108,118,105,114,108,106,111,151,147,156,137,166,151,322,270,343,275,265,185,460,429,470,463,539,305,271,66,131,71,721,135,165,3,3,-35,525,525,471,454,537,528,514,239,694,687,5700,5600,4698,590,29993,29994,29997,29997]} 1. e4 {[%emt 0:00:01]} e6 {[%emt 0:00:01]} 2. d4 {[%emt 0:00:03]} d5 {[%emt 0:00:01]} 3. Nc3 {[%emt 0:00:01]} Bb4 {[%emt 0:00:02]} 4. Nge2 {[%emt 0:00:01]} dxe4 {[%emt 0:00:02]} 5. a3 {[%emt 0:00:01]} Be7 {[%emt 0:00:02]} 6. Nxe4 {[%emt 0:00:02]} Nd7 {[%emt 0:00:03]} 7. Bf4 {[%emt 0:00:19]} Ngf6 {[%emt 0:00:03]} 8. N2c3 {[%emt 0:00:11]} O-O {[%emt 0:00:06] C15: French: 3 Nc3 Bb4: Unusual White 4th moves.} 9. Bd3 {[%emt 0:00:02][%cal Bf1d3,Bd3h7,Bh7e4][%mdl 32]} Nxe4 {[%emt 0:00:43]} 10. Nxe4 {[%emt 0:00:01]} Nf6 {[%emt 0:00:04] The position is equal.} 11. Nxf6+ $1 {[%emt 0:00:41]} Bxf6 {[%emt 0:00:02]} 12. c3 {[%emt 0:00:01]} (12. Qh5 g6 13. Qf3 Qxd4 $15) 12... Bd7 {[%emt 0:00:15]} 13. Qc2 {[%emt 0:00:15] [#]} (13. Qf3 {is interesting.} Bc6 14. Qg3 Bh4 15. Qh3) 13... h6 $146 {[%emt 0:00:04]} ({Predecessor:} 13... g6 14. Be4 c6 15. O-O Re8 16. Be5 Qe7 17. Rad1 Rad8 18. Rd3 Bg7 19. Rfd1 Bc8 {1-0 Sendera,J (2334)-Stysiak,S (2260) POL-chT1 Chotowa 2007 (4)}) 14. Bh7+ {[%emt 0:00:06]} Kh8 {[%emt 0:00:01][%cal Oc7c5]} 15. Be4 {[%emt 0:00:01]} Rb8 {[%emt 0:00:17]} 16. h4 {[%emt 0:00:04]} Bc6 {[%emt 0:00:06]} 17. O-O-O {[%emt 0:00:17]} Be7 {[%emt 0:00:45]} (17... Bxh4 $5 18. Bxc6 bxc6 $11) 18. Kb1 {[%emt 0:00:16]} Bd6 {[%emt 0:00:07] [#]} 19. Bg5 {[%emt 0:00:05]} Bxe4 {[%emt 0:00:15]} 20. Qxe4 {[%emt 0:00:02]} (20. Bxd8 $2 Bxc2+ 21. Kxc2 Rfxd8 $19) 20... Qd7 {[%emt 0:00:02]} 21. c4 {[%emt 0:00:23][%cal Oc4c5]} Qa4 {[%emt 0:00:08][%cal Oa4c4]} (21... hxg5 $2 22. hxg5+) 22. c5 {[%emt 0:00:26]} Bxc5 {[%emt 0:00:26]} 23. Bxh6 {[%emt 0:00:02]} gxh6 {[%emt 0:00:48]} (23... Bxa3 $11 24. Qe5 f6 25. Bxg7+ {[%mdl 64] Decoy} Kxg7 26. Qg3+ Kf7 27. bxa3 (27. Qxa3 Qxa3 28. bxa3 Rg8 $11) 27... Rbd8) 24. Qe5+ $14 {[%emt 0:00:01]} f6 {[%emt 0:00:09]} ({Better is} 24... Kh7 $14 25. Qxc5 (25. dxc5 Rbd8 $11) 25... Rbd8) 25. Qxc5 $16 {[%emt 0:00:01]} Qd7 {[%emt 0:00:18]} 26. d5 {[%emt 0:00:09]} b6 {[%emt 0:00:06]} 27. Qe3 {[%emt 0:00:03][%csl LRe6,LRh6]} Qh7+ {[%emt 0:00:03]} 28. Ka1 $1 {[%emt 0:00:01] Active counter play!} exd5 {[%emt 0:00:01]} 29. Rxd5 {[%emt 0:00:02]} Rbe8 {[%emt 0:00:04]} 30. Qd2 {[%emt 0:00:10]} Re7 {[%emt 0:00:07] Repels Rd7} 31. g4 {[%emt 0:00:14]} Qg6 {[%emt 0:00:12]} 32. g5 {[%emt 0:00:07]} fxg5 $2 {[%emt 0:00:11]} (32... Kg7 $16 33. h5 Qe4 34. gxh6+ Kh8) 33. hxg5 $18 {[%emt 0:00:02]} h5 {[%emt 0:00:00]} 34. f4 {[%emt 0:00:03][%cal Of4f5]} Kg8 {[%emt 0:00:03]} 35. Rd4 {[%emt 0:00:32] Dodges Qe4} Ref7 $2 {[%emt 0:00:02]} (35... Rfe8 {might work better.} 36. Qd1 Qc6) 36. Re1 {[%emt 0:00:02]} h4 {[%emt 0:00:04]} 37. Rh1 {[%emt 0:00:10]} Rh7 {[%emt 0:00:02]} 38. Qg2 {[%emt 0:00:05] And now Qd5+ would win.} Qf5 {[%emt 0:00:08]} 39. Rh3 $2 {[%emt 0:00:18]} (39. Qf3 $1 $18) 39... Re8 {[%emt 0:00:01]} (39... Re7 $14) 40. Rd1 {[%emt 0:00:09]} (40. Qc6 $142 $1 {[%cal Rc6e8]} Re1+ 41. Ka2 Qe6+ 42. Qxe6+ Rxe6 43. Rd8+ Kg7 44. Rd7+ Kh8 45. Rxh7+ Kxh7 46. Rxh4+ Kg7 47. f5) 40... Qxf4 $2 {[%emt 0:00:10][%mdl 8192]} (40... Rd7 $16 41. Rhh1 Rxd1+ 42. Rxd1 Re4) 41. g6 $2 {[%emt 0:00:02]} (41. Qd5+ $18 {is the precise move to win.} Kh8 42. g6) 41... Rhe7 $16 {[%emt 0:00:01] [#]} 42. Qd5+ {[%emt 0:00:04]} (42. Rhh1 $1 $18) 42... Kg7 $1 $11 {[%emt 0:00:01]} 43. Rf3 {[%emt 0:00:02]} Qg4 {[%emt 0:00:10][%mdl 8192]} (43... Qd6 $1 $15 44. Rf7+ Kh6 45. Qxd6 (45. Qd4 $2 Qxd4 46. Rxd4 Re1+ 47. Ka2 Kxg6 $17) 45... cxd6 46. Rxd6 Kg5) 44. Rf7+ $18 {[%emt 0:00:07]} Kh6 {[%emt 0:00:02][%cal Og4d1] White must now prevent ...Qxd1+!} 45. Qd2+ {[%emt 0:00:09]} ({Wrong is} 45. Qd4 $2 Qxd1+ 46. Qxd1 Re1 $19) 45... Kxg6 {[%emt 0:00:03] [#]} 46. Rff1 {[%emt 0:00:06] Rg1 is the strong threat.} Kh7 {[%emt 0:00:04]} 47. Rg1 {[%emt 0:00:06]} ({But not} 47. Rf6 $2 Qxd1+ 48. Qxd1 Re1 $19) 47... Qf5 {[%emt 0:00:06]} (47... Qh5 48. Rh1 Re4) 48. Rdf1 {[%emt 0:00:02]} Qh5 {[%emt 0:00:03]} 49. Qd3+ {[%emt 0:00:10]} Kh8 {[%emt 0:00:01]} 50. Rf5 {[%emt 0:00:04]} (50. Qd4+ $142 Kh7 51. Qd3+ Kh8 52. Rf5 Qxf5 53. Qxf5 Re1+ 54. Rxe1 Rxe1+ 55. Ka2) 50... Re1+ {[%emt 0:00:03]} 51. Ka2 {[%emt 0:00:01][%cal Rf5h5]} Qe2 {[%emt 0:00:05]} 52. Qxe2 {[%emt 0:00:03] Excellently played by Vachier-Lagrave!   Weighted Error Value: White=0.45/Black=0.57} 1-0

[Event "Superbet Blitz Poland 2023"]
[Site "Warsaw"]
[Date "2023.05.24"]
[Round "2"]
[White "Duda, Jan-Krzysztof"]
[Black "Giri, Anish"]
[Result "1/2-1/2"]
[ECO "D53"]
[WhiteElo "2724"]
[BlackElo "2768"]
[Annotator "TA"]
[PlyCount "89"]
[EventDate "2023.05.24"]
[EventType "tourn"]
[EventCountry "POL"]
[SourceTitle "playchess.com"]
[Source "ChessBase"]
[SourceQuality "1"]
[TimeControl "300+2"]

{[%evp 17,89,15,26,25,19,0,14,9,15,9,13,39,21,17,40,0,0,0,0,0,0,0,0,-5,0,0,0,0,0,0,0,-2,0,-2,0,-6,-6,-6,-2,-6,0,0,0,-2,0,-12,-6,-15,-5,-5,-5,-5,0,0,0,0,0,0,0,0,0,0,0,0,0,0,0,0,0,0,0,0,0,0]} 1. d4 {[%emt 0:00:02]} d5 {[%emt 0:00:02]} 2. c4 {[%emt 0:00:10]} c6 {[%emt 0:00:00]} 3. Nc3 {[%emt 0:00:04]} Nf6 {[%emt 0:00:00]} 4. Nf3 {[%emt 0:00:05]} e6 {[%emt 0:00:02]} 5. Bg5 {[%emt 0:00:03]} h6 {[%emt 0:00:03]} 6. Bh4 {[%emt 0:00:07]} Nbd7 {[%emt 0:00:02]} 7. e3 {[%emt 0:00:02]} Be7 {[%emt 0:00:00]} 8. Bd3 {[%emt 0:00:34] 8.Qc2 is the fancy move.} dxc4 {[%emt 0:00:02]} 9. Bxc4 {[%emt 0:00:01]} b5 {[%emt 0:00:01][%cal Bb7b5,Bb5b4][%mdl 32]} 10. Bd3 {[%emt 0:00:03] D53: Queen's Gambit Declined: 4 Bg5 Be7: Early deviations.} Bb7 {[%emt 0:00:01]} 11. a3 {[%emt 0:00:09]} a5 {[%emt 0:00:07]} 12. O-O {[%emt 0:00:11]} O-O {[%emt 0:00:02]} 13. Qc2 {[%emt 0:00:16]} Rc8 {[%emt 0:00:39]} 14. Rfd1 {[%emt 0:00:29]} b4 {[%emt 0:00:27] [#]} 15. Bxf6 $146 {[%emt 0:00:19]} ({Predecessor:} 15. axb4 axb4 16. Ne4 Nxe4 17. Bxe7 Qxe7 18. Bxe4 f5 19. Bd3 c5 20. Qe2 Bxf3 21. Qxf3 {0-1 Maldonado Pacheco,J (1975)-Triay Moll,L ESP AEAC W/P/010 email 2007}) 15... Nxf6 {[%emt 0:00:50]} 16. Ne4 {[%emt 0:00:05]} (16. Na4 $5 {[%cal Ra4c5]}) 16... c5 {[%emt 0:00:08] The position is equal.} 17. dxc5 {[%emt 0:00:04] [#] Black must now prevent Nxf6+.} Bxe4 {[%emt 0:01:11]} 18. Bxe4 {[%emt 0:00:01]} Qc7 {[%emt 0:00:01]} 19. axb4 {[%emt 0:01:46]} axb4 {[%emt 0:00:01][%cal Of6e4]} 20. c6 {[%emt 0:00:05] [#]} b3 $1 {[%emt 0:00:38]} 21. Qc4 {[%emt 0:00:22]} Nxe4 {[%emt 0:00:01][%mdl 64] Remove Defender} 22. Qxe4 {[%emt 0:00:02] And now Rd7 would win.} Qxc6 {[%emt 0:00:04]} 23. Qxc6 {[%emt 0:00:05]} Rxc6 {[%emt 0:00:01]} 24. Rd3 {[%emt 0:00:09]} Rb6 {[%emt 0:00:19]} 25. Nd2 {[%emt 0:00:15]} Bf6 {[%emt 0:00:01]} 26. Rb1 {[%emt 0:00:03]} Rfb8 {[%emt 0:00:35]} 27. Kf1 {[%emt 0:00:02]} g6 {[%emt 0:00:08]} 28. Ke2 {[%emt 0:00:08]} Kg7 {[%emt 0:00:12]} 29. Ne4 {[%emt 0:00:06]} Rc6 {[%emt 0:00:08]} 30. Nxf6 {[%emt 0:00:06] Strongly threatening Ne4.} Kxf6 $11 {[%emt 0:00:01][%mdl 4096] Endgame KRR-KRR} 31. Rbd1 {[%emt 0:00:01]} Rc2+ {[%emt 0:00:05]} 32. R1d2 {[%emt 0:00:01]} Rb7 {[%emt 0:00:09]} 33. Kd1 {[%emt 0:00:06]} Rcc7 {[%emt 0:00:00]} 34. h4 {[%emt 0:00:03]} h5 {[%emt 0:00:02]} 35. g3 {[%emt 0:00:01]} Ke7 {[%emt 0:00:03]} 36. Ke2 {[%emt 0:00:04]} Rc2 {[%emt 0:00:01]} 37. Kf3 {[%emt 0:00:02]} Rc4 {[%emt 0:00:03]} 38. Rd4 {[%emt 0:00:03]} Rc2 {[%emt 0:00:01]} 39. R4d3 {[%emt 0:00:01]} Rc4 {[%emt 0:00:01]} 40. Ke2 {[%emt 0:00:02]} Rc2 {[%emt 0:00:01]} 41. Ke1 {[%emt 0:00:02]} Rc1+ {[%emt 0:00:01]} 42. Rd1 {[%emt 0:00:01]} Rc2 {[%emt 0:00:01]} 43. R1d2 {[%emt 0:00:02]} Rc1+ {[%emt 0:00:00]} 44. Rd1 {[%emt 0:00:01]} Rc2 {[%emt 0:00:01]} 45. R1d2 {An interesting draw.   Weighted Error Value: White=0.04 (flawless) /Black=0.02 (flawless)} 1/2-1/2

[Event "Superbet Blitz Poland 2023"]
[Site "Warsaw"]
[Date "2023.05.24"]
[Round "2"]
[White "Deac, Bogdan-Daniel"]
[Black "Wojtaszek, Radoslaw"]
[Result "0-1"]
[ECO "A13"]
[WhiteElo "2700"]
[BlackElo "2670"]
[Annotator "TA"]
[PlyCount "92"]
[EventDate "2023.05.24"]
[EventType "tourn"]
[EventCountry "POL"]
[SourceTitle "playchess.com"]
[Source "ChessBase"]
[SourceQuality "1"]
[TimeControl "300+2"]

{[%evp 14,92,8,-8,8,-4,-5,-18,-2,-73,-49,-111,-62,-75,-56,-60,-37,-39,-26,-23,0,-10,31,21,34,22,31,-2,0,-47,-52,-59,0,-49,-43,-114,-22,-75,-10,-125,-55,-59,-57,-62,-44,-89,-79,-111,-103,-176,-175,-186,-110,-440,-414,-450,-446,-491,-472,-663,-638,-658,-666,-659,-656,-635,-635,-838,-847,-831,-843,-833,-814,-977,-804,-804,-714,-714,-714,-706,-699]} 1. Nf3 {[%emt 0:00:02]} d5 {[%emt 0:00:01]} 2. e3 {[%emt 0:00:02]} Nf6 {[%emt 0:00:04]} 3. c4 {[%emt 0:00:01]} e6 {[%emt 0:00:02]} 4. b3 {[%emt 0:00:01]} c5 {[%emt 0:00:02]} 5. Bb2 {[%emt 0:00:05]} Nc6 {[%emt 0:00:02]} 6. cxd5 {[%emt 0:00:03]} exd5 {[%emt 0:00:01]} 7. Bb5 {[%emt 0:00:02]} Bd6 {[%emt 0:00:09]} 8. O-O {[%emt 0:00:02]} O-O {[%emt 0:00:02] A13: English Opening: 1...e6.} 9. h3 {[%emt 0:00:01]} Bf5 $5 {[%emt 0:00:09][%mdl 4] [#] Leaves trodden paths.} 10. Nc3 $146 {[%emt 0:00:35]} ({Predecessor:} 10. d4 cxd4 11. Nxd4 Nxd4 12. Qxd4 Rc8 13. Nc3 a6 14. Be2 Re8 15. Bf3 Be5 16. Qd2 {½-½ Utegaliev,A (2495)-Savchenko,B (2567) Voronezh op-A 23rd 2019 (7)}) 10... Rc8 {[%emt 0:00:08] The position is equal.} 11. Na4 {[%emt 0:01:04]} (11. d4 $11) 11... a6 {[%emt 0:00:27]} 12. Be2 {[%emt 0:00:21]} (12. Bxc6 $15 Rxc6 13. b4) 12... b5 {[%emt 0:00:05]} (12... d4 $17 {White must now prevent ...d3.} 13. exd4 cxd4 14. Bxd4 Bh2+ 15. Kxh2 Nxd4) 13. Bxf6 $1 $15 {[%emt 0:00:08]} Qxf6 {[%emt 0:00:08]} 14. Nb6 {[%emt 0:00:11][%csl LRc8,LRd5] White is weak on the dark squares} Rcd8 $1 {[%emt 0:00:20] [#] aiming for ...Bc7.} 15. Nxd5 {[%emt 0:00:01]} Qe6 {[%emt 0:00:11]} 16. Nc3 {[%emt 0:00:24]} Ne5 {[%emt 0:00:01][%mdl 1024] Black has compensation.} 17. Ng5 {[%emt 0:00:37]} Qh6 {[%emt 0:00:37]} (17... Qe7 $5 {[%cal Re7g5]} 18. f4 Bc7 $11) 18. f4 {[%emt 0:00:03]} Be7 {[%emt 0:00:25] A strong pair of Bishops.} 19. Nge4 {[%emt 0:00:52]} ({Much worse is} 19. fxe5 Qxg5 20. h4 Qg6 $15) 19... Nd3 {[%emt 0:00:11]} 20. Ng3 {[%emt 0:00:12]} (20. Qb1 $5 {[%cal Re2d3]} Nb4 21. Bg4 Bxg4 22. hxg4 $11) 20... Bc8 {[%emt 0:00:05]} 21. Bf3 {[%emt 0:00:36]} (21. Qb1 $11 {should be considered.} c4 22. bxc4 bxc4 23. Bf3) 21... Bh4 {[%emt 0:00:06]} 22. Nge2 {[%emt 0:00:06]} Be6 {[%emt 0:00:26]} (22... Qg6 $15) 23. Ne4 {[%emt 0:00:09]} (23. Nc1 $11) 23... f5 {[%emt 0:00:05]} 24. N4c3 {[%emt 0:00:04]} (24. Ng5 $15) 24... Rfe8 {[%emt 0:00:08]} (24... Bf6 $17 25. Rb1 Rd7) 25. Rb1 {[%emt 0:00:03]} (25. Nc1 $11) 25... Bf6 {[%emt 0:00:07]} (25... Rd6 $17) 26. a3 {[%emt 0:00:03]} (26. a4 $11 {remains equal.}) 26... Qg6 {[%emt 0:00:04] Black has more active pieces.} ({Black should try} 26... Rd6 $17 27. b4 cxb4 28. axb4 Red8) 27. Kh2 {[%emt 0:00:02]} Qf7 {[%emt 0:00:01]} 28. Qc2 $1 {[%emt 0:00:02]} Qd7 {[%emt 0:00:06] Wards off Bc6} 29. Ng3 {[%emt 0:00:03]} g6 {[%emt 0:00:05]} 30. Nce2 {[%emt 0:00:03]} h5 {[%emt 0:00:01]} 31. Nh1 {[%emt 0:00:01]} (31. Nc1 $17 {was necessary.}) 31... c4 $19 {[%emt 0:00:05]} 32. b4 {[%emt 0:00:02]} Bd5 {[%emt 0:00:09]} ({Black should play} 32... h4 $19 33. Nc3 g5 34. fxg5 (34. Nf2 $2 Nxf2 35. Rxf2 g4 $19) 34... Be5+ 35. Kg1 Qe7) 33. Rbd1 $2 {[%emt 0:00:02][%mdl 8192] [#] This costs White the game.} (33. Bxd5+ $17 Qxd5 34. Nc3) 33... Bxf3 {[%emt 0:00:03]} 34. Rxf3 {[%emt 0:00:01]} Nb2 {[%emt 0:00:01] Black is clearly winning.} 35. Rc1 {[%emt 0:00:02]} Qxd2 {[%emt 0:00:01]} 36. Nhg3 {[%emt 0:00:02]} (36. Nd4 $142 Qxc2 37. Nxc2) 36... h4 {[%emt 0:00:01]} (36... Rxe3 $2 37. Qxd2 Rxd2 38. Rxe3 $18) 37. Nf1 {[%emt 0:00:01]} Qxc2 {[%emt 0:00:08]} 38. Rxc2 {[%emt 0:00:01]} Nd3 {[%emt 0:00:01]} 39. Ra2 {[%emt 0:00:04]} c3 {[%emt 0:00:11] Against Nd2} 40. Nd4 {[%emt 0:00:01]} Ne1 {[%emt 0:00:05] Prevents Nc2} 41. Rff2 {[%emt 0:00:00]} Bxd4 {[%emt 0:00:01]} 42. exd4 {[%emt 0:00:01]} Rxd4 {[%emt 0:00:01]} 43. g3 {[%emt 0:00:06]} c2 {[%emt 0:00:06]} 44. Raxc2 {[%emt 0:00:01]} Nxc2 {[%emt 0:00:01]} 45. Rxc2 {[%emt 0:00:00]} Re1 {[%emt 0:00:09]} 46. Kg2 {[%emt 0:00:01]} hxg3 {[%emt 0:00:01] Weighted Error Value: White=0.50/Black=0.23 (precise)} 0-1